lending/lending_fUSD_20250508
["ID","MTS","AMOUNT","RATE_DAILY","PERIOD"]
[360318804,1746740959135,-2000.0,0.00040548,120]
[360318805,1746740959162,-1300.0,0.00040549,30]
[360318806,1746740959191,-500.0,0.00040563,30]
[360318807,1746740959220,-216.66933,0.000406,120]
[360318808,1746740959252,-304.93797,0.000406,120]
[360318809,1746740959280,-888.0,0.00040621,30]
[360318810,1746740959307,-500.0,0.00040631,30]
[360318811,1746740959336,-2000.0,0.00040685,120]
[360318812,1746740959364,-500.0,0.00040757,30]
[360318813,1746740959395,-232.22222,0.000408,120]
[360318814,1746740959428,-160.0,0.000408,36]
[360318815,1746740959458,-160.0,0.000408,36]
[360318816,1746740959485,-2000.0,0.00040822,120]
[360318817,1746740959512,-500.0,0.00040835,30]
[360318818,1746740959538,-1300.0,0.00040862,30]
[360318819,1746740959564,-1160.19979,0.00040888,30]
[360318820,1746740959590,-3795.28934316,0.000409,30]
[360318821,1746740959616,-2000.0,0.00040959,120]
[360318822,1746740959649,-50000.0,0.00041,41]
[360318823,1746740960044,-50000.0,0.00041,31]
[360318824,1746740960073,-231.26274354,0.00041,120]
[360318825,1746740960101,-1800.0,0.00041,42]
[360318826,1746740960129,-1000.0,0.00041,120]
[360318827,1746740960155,-20000.0,0.00041,120]
[360318828,1746740960180,-3336.4,0.00041,120]
[360318829,1746740960207,-50092.36556225,0.00041,30]
[360318830,1746740960232,-6583.05295212,0.00041,120]
[360318831,1746740960258,-5168.37311996,0.00041,30]
[360318832,1746740960284,-3000.0,0.00041,120]
[360318833,1746740960309,-302.87970268,0.00041,120]
[360318834,1746740960335,-206.0,0.00041,30]
[360318835,1746740960362,-505.76621124,0.00041,120]
[360318836,1746740960390,-4173.0,0.00041,117]
[360318837,1746740960417,-1300.0,0.00041033,30]
[360318838,1746740960444,-800.0,0.00041052,60]
[360318839,1746740960470,-500.0,0.00041052,60]
[360318840,1746740960496,-500.0,0.00041062,30]
[360318841,1746740960523,-1160.19979,0.00041088,30]
[360318842,1746740960549,-238.0,0.00041096,90]
[360318843,1746740960576,-1073.0,0.00041096,90]
[360318844,1746740960603,-574.0,0.00041096,30]
[360318845,1746740960631,-500.0,0.00041096,30]
[360318846,1746740960657,-500.0,0.00041096,30]
[360318847,1746740960685,-500.0,0.00041096,30]
[360318848,1746740960712,-500.0,0.00041096,30]
[360318849,1746740960739,-500.0,0.00041096,30]
[360318850,1746740960766,-500.0,0.00041096,30]
[360318851,1746740960793,-500.0,0.00041096,30]
[360318852,1746740960819,-500.0,0.00041096,30]
[360318853,1746740960847,-500.0,0.00041096,30]
[360318854,1746740960880,-500.0,0.00041096,30]
[360318855,1746740960909,-500.0,0.00041096,30]
[360318856,1746740960942,-500.0,0.00041096,30]
[360318857,1746740960974,-500.0,0.00041096,30]
[360318858,1746740961001,-500.0,0.00041096,30]
[360318859,1746740961030,-500.0,0.00041096,30]
[360318860,1746740961057,-500.0,0.00041096,30]
[360318861,1746740961084,-500.0,0.00041096,30]
[360318862,1746740961112,-500.0,0.00041096,30]
[360318863,1746740961143,-500.0,0.00041096,30]
[360318864,1746740961170,-500.0,0.00041096,30]
[360318865,1746740961197,-500.0,0.00041096,30]
[360318866,1746740961224,-500.0,0.00041096,30]
[360318867,1746740961253,-500.0,0.00041096,30]
[360318868,1746740961280,-500.0,0.00041096,30]
[360318869,1746740961306,-500.0,0.00041096,30]
[360318870,1746740961332,-500.0,0.00041096,30]
[360318871,1746740961357,-501.0,0.00041096,30]
[360318872,1746740961387,-500.0,0.00041096,30]
[360318873,1746740961414,-500.0,0.00041096,30]
[360318874,1746740961440,-500.0,0.00041096,30]
[360318875,1746740961467,-500.0,0.00041096,30]
[360318876,1746740961493,-500.0,0.00041096,30]
[360318877,1746740961518,-500.0,0.00041096,30]
[360318878,1746740961544,-500.0,0.00041096,30]
[360318879,1746740961570,-500.0,0.00041096,30]
[360318880,1746740961595,-500.0,0.00041096,30]
[360318881,1746740961620,-3104.46,0.00041096,120]
[360318882,1746740961650,-2000.0,0.00041096,120]
[360318883,1746740961675,-162.63025289,0.000411,30]
[360318884,1746740961699,-1000.0,0.000411,120]
[360318885,1746740961725,-300.0,0.000412,30]
[360318886,1746740961750,-600.0,0.00041213,30]
[360318887,1746740961775,-500.0,0.00041273,120]
[360318888,1746740961801,-1160.19979,0.00041288,30]
[360318889,1746740961828,-500.0,0.00041299,30]
[360318890,1746740961855,-1300.0,0.00041305,30]
[360318891,1746740961884,-212.0,0.0004131,30]
[360318892,1746740961912,-600.0,0.00041328,60]
[360318893,1746740961942,-500.0,0.00041341,30]
[360318894,1746740961972,-2000.0,0.0004137,120]
[360318895,1746740962013,-500.0,0.00041373,120]
[360318896,1746740962042,-500.0,0.00041459,30]
[360318897,1746740962072,-802.85060678,0.00041473,120]
[360318898,1746740962100,-1160.19979,0.00041488,30]
[360318899,1746740962131,-1000.0,0.000415,120]
[360318900,1746740962156,-1000.0,0.000415,120]
[360318901,1746740962183,-1000.0,0.000415,120]
[360318902,1746740962210,-1000.0,0.000415,120]
[360318903,1746740962237,-1300.0,0.000415,30]
[360318904,1746740962264,-500.0,0.00041524,30]
[360318905,1746740962291,-500.0,0.0004158,30]
[360318906,1746740962320,-304.93797,0.000416,120]
[360318907,1746740962351,-2000.0,0.00041644,120]
[360318908,1746740962382,-1160.19979,0.00041688,30]
[360318909,1746740962411,-500.0,0.00041698,30]
[360318910,1746740962438,-1000.00317389,0.000417,120]
[360318911,1746740962467,-150.0,0.00041719,120]
[360318912,1746740962493,-500.0,0.00041787,30]
[360318913,1746740962526,-827.78830401,0.00041797,30]
[360318914,1746740962553,-2188.99,0.000418,90]
[360318915,1746740962581,-160.0,0.000418,40]
[360318916,1746740962609,-160.0,0.000418,40]
[360318917,1746740963095,-980.29895025,0.00041848,30]
[360318918,1746740963128,-150.0,0.0004187,30]
[360318919,1746740963158,-150.0,0.00041884,120]
[360318920,1746740963185,-1160.19979,0.00041888,30]
[360318921,1746740963213,-222.22222,0.000419,120]
[360318922,1746740963238,-1300.0,0.00041901,30]
[360318923,1746740963265,-270.26,0.00041917,120]
[360318924,1746740963291,-2000.0,0.00041918,120]
[360318925,1746740963317,-150.0,0.0004193,120]
[360318926,1746740963347,-1577.0,0.0004197,120]
[360318927,1746740963373,-506.0,0.0004197,120]
[360318928,1746740963402,-176.0,0.0004197,120]
[360318929,1746740963429,-1577.0,0.0004197,120]
[360318930,1746740963456,-506.0,0.0004197,120]
[360318931,1746740963481,-176.0,0.0004197,120]
[360318932,1746740963507,-852.0,0.0004197,120]
[360318933,1746740963534,-852.0,0.0004197,120]
[360318934,1746740963560,-1577.0,0.0004198,120]
[360318935,1746740963590,-506.0,0.0004198,120]
[360318936,1746740963617,-176.0,0.0004198,120]
[360318937,1746740963648,-1577.0,0.0004198,120]
[360318938,1746740963674,-506.0,0.0004198,120]
[360318939,1746740963702,-176.0,0.0004198,120]
[360318940,1746740963730,-506.0,0.0004198,120]
[360318941,1746740963760,-176.0,0.0004198,120]
[360318942,1746740963787,-179.8,0.0004198,120]
[360318943,1746740963815,-511.87,0.0004198,120]
[360318944,1746740963843,-1577.0,0.0004198,120]
[360318945,1746740963870,-1580.31,0.0004198,120]
[360318946,1746740963902,-852.0,0.0004198,120]
[360318947,1746740963932,-852.0,0.0004198,120]
[360318948,1746740963963,-852.0,0.0004198,120]
[360318949,1746740963996,-857.91,0.0004198,120]
[360318950,1746740964042,-500.0,0.00041988,30]
[360318951,1746740964076,-500.0,0.00041988,30]
[360318952,1746740964105,-14690.215,0.00041989,120]
[360318953,1746740964136,-14690.216,0.00041989,120]
[360318954,1746740964165,-14690.215,0.00041989,120]
[360318955,1746740964192,-14690.216,0.00041989,120]
[360318956,1746740964220,-14690.215,0.00041989,120]
[360318957,1746740964249,-248.0,0.0004199,120]
[360318958,1746740964277,-1577.0,0.0004199,120]
[360318959,1746740964306,-506.0,0.0004199,120]
[360318960,1746740964334,-176.0,0.0004199,120]
[360318961,1746740964362,-1577.0,0.0004199,120]
[360318962,1746740964393,-506.0,0.0004199,120]
[360318963,1746740964420,-176.0,0.0004199,120]
[360318964,1746740964448,-506.0,0.0004199,120]
[360318965,1746740964476,-176.0,0.0004199,120]
[360318966,1746740964504,-176.0,0.0004199,120]
[360318967,1746740964532,-506.0,0.0004199,120]
[360318968,1746740964569,-1577.0,0.0004199,120]
[360318969,1746740964600,-1577.0,0.0004199,120]
[360318970,1746740964635,-852.0,0.0004199,120]
[360318971,1746740964666,-852.0,0.0004199,120]
[360318972,1746740964697,-852.0,0.0004199,120]
[360318973,1746740964728,-852.0,0.0004199,120]
[360318974,1746740964762,-50000.0,0.00042,42]
[360318975,1746740964797,-50000.0,0.00042,32]
[360318976,1746740964828,-363.04195248,0.00042,120]
[360318977,1746740964865,-2000.0,0.00042,120]
[360318978,1746740964898,-472.41049129,0.00042,120]
[360318979,1746740964931,-1800.0,0.00042,43]
[360318980,1746740964962,-1400.0,0.00042,120]
[360318981,1746740964994,-250000.0,0.00042,30]
[360318982,1746740965027,-1000.0,0.00042,120]
[360318983,1746740965057,-20000.0,0.00042,120]
[360318984,1746740965086,-135061.29715529,0.00042,30]
[360318985,1746740965129,-181.58760927,0.00042,30]
[360318986,1746740965162,-19243.81497359,0.00042,30]
[360318987,1746740965193,-1535.0,0.00042,120]
[360318988,1746740965223,-3391.36079375,0.00042,120]
[360318989,1746740965254,-950.8192542,0.00042,120]
[360318990,1746740965285,-159.21555244,0.00042,30]
[360318991,1746740965316,-19146.0,0.00042,120]
[360318992,1746740965347,-230.6948131,0.00042,30]
[360318993,1746740965380,-3000.0,0.00042,60]
[360318994,1746740965410,-171000.0,0.00042,30]
[360318995,1746740965440,-8100.0,0.00042,120]
[360318996,1746740965470,-3282.77464219,0.00042,30]
[360318997,1746740965498,-4175.44189424,0.00042,120]
[360318998,1746740965527,-206.0,0.00042,30]
[360318999,1746740965556,-1007.92,0.00042,53]
[360319000,1746740965584,-1007.92,0.00042,53]
[360319001,1746740965612,-500.0,0.00042004,30]
[360319002,1746740965650,-150.0,0.00042038,120]
[360319003,1746740965680,-150.0,0.00042064,120]
[360319004,1746740965710,-1160.19979,0.00042088,30]
[360319005,1746740965743,-50000.0,0.000421,120]
[360319006,1746740965775,-150.0,0.00042111,120]
[360319007,1746740965805,-5010.48571,0.0004213,30]
[360319008,1746740965834,-246.566355,0.00042136,120]
[360319009,1746740965863,-2000.0,0.00042136,120]
[360319010,1746740965895,-156.540878,0.00042136,120]
[360319011,1746740966397,-200.0,0.00042136,120]
[360319012,1746740966427,-150.0,0.00042142,120]
[360319013,1746740966452,-1300.0,0.00042143,30]
[360319014,1746740966478,-800.0,0.00042148,60]
[360319015,1746740966504,-500.0,0.00042148,60]
[360319016,1746740966530,-1007.92,0.0004215,54]
[360319017,1746740966562,-1007.92,0.0004215,54]
[360319018,1746740966590,-150.0,0.0004218,120]
[360319019,1746740966618,-2000.0,0.00042192,120]
[360319020,1746740966652,-1000.0,0.000422,120]
[360319021,1746740966680,-150.0,0.00042203,120]
[360319022,1746740966709,-150.0,0.0004221,120]
[360319023,1746740966737,-1300.0,0.00042221,30]
[360319024,1746740966763,-1000.0,0.0004226,120]
[360319025,1746740966790,-1160.19979,0.00042288,30]
[360319026,1746740966818,-150.0,0.00042293,120]
[360319027,1746740966846,-1007.92,0.000423,55]
[360319028,1746740966873,-1007.92,0.000423,55]
[360319029,1746740966903,-1300.0,0.00042321,30]
[360319030,1746740966933,-1000.0,0.00042324,31]
[360319031,1746740966962,-150.0,0.0004235,120]
[360319032,1746740966991,-500.0,0.000424,30]
[360319033,1746740967021,-2929.925,0.00042412,64]
[360319034,1746740967050,-1300.0,0.00042421,30]
[360319035,1746740967077,-86174.0,0.0004244,30]
[360319036,1746740967108,-1007.92,0.0004245,56]
[360319037,1746740967138,-1007.92,0.0004245,56]
[360319038,1746740967167,-150.0,0.00042457,120]
[360319039,1746740967195,-500.0,0.00042465,30]
[360319040,1746740967225,-2000.0,0.00042466,120]
[360319041,1746740967253,-6000.0,0.0004247,30]
[360319042,1746740967281,-1160.19979,0.00042488,30]
[360319043,1746740967309,-500.0,0.000425,30]
[360319044,1746740967336,-2799.32,0.000425,90]
[360319045,1746740967364,-4235.49123178,0.000425,120]
[360319046,1746740967394,-5000.0,0.000425,120]
[360319047,1746740967422,-150.0,0.0004253,120]
[360319048,1746740967455,-1300.0,0.00042545,30]
[360319049,1746740967483,-212.0,0.0004255,30]
[360319050,1746740967512,-212.0,0.0004255,30]
[360319051,1746740967542,-150.0,0.00042559,120]
[360319052,1746740967572,-150.0,0.0004256,120]
[360319053,1746740967601,-2000.0,0.0004259,30]
[360319054,1746740967633,-150.0,0.0004259,120]
[360319055,1746740967664,-1000.0,0.000426,120]
[360319056,1746740967693,-1000.0,0.000426,120]
[360319057,1746740967724,-304.93797,0.000426,120]
[360319058,1746740967753,-1007.92,0.000426,58]
[360319059,1746740967783,-1007.92,0.000426,58]
[360319061,1746740967820,-150.0,0.00042645,120]
[360319063,1746740967850,-150.0,0.0004267,30]
[360319067,1746740967880,-150.0,0.0004267,30]
[360319068,1746740967911,-150.0,0.0004267,30]
[360319069,1746740967943,-150.0,0.0004267,30]
[360319070,1746740967974,-150.0,0.0004267,30]
[360319072,1746740968003,-150.0,0.0004267,30]
[360319073,1746740968034,-150.0,0.0004267,30]
[360319074,1746740968067,-150.0,0.00042675,120]
[360319075,1746740968097,-546.57042015,0.00042676,30]
[360319076,1746740968125,-1300.0,0.00042679,30]
[360319077,1746740968158,-1160.19979,0.00042688,30]
[360319078,1746740968187,-2000.0,0.0004274,120]
[360319079,1746740968216,-1300.0,0.00042741,30]
[360319080,1746740968248,-150.0,0.00042746,120]
[360319081,1746740968276,-1986.29099,0.0004275,59]
[360319082,1746740968304,-1007.92,0.0004275,59]
[360319083,1746740968336,-150.0,0.00042759,120]
[360319084,1746740968368,-1333.0,0.00042795,90]
[360319085,1746740968398,-954.76702398,0.00042795,30]
[360319086,1746740968426,-879.26949756,0.000428,120]
[360319087,1746740968453,-160.0,0.000428,45]
[360319088,1746740968481,-160.0,0.000428,45]
[360319089,1746740968510,-2128.82695523,0.000428,120]
[360319090,1746740968538,-150.0,0.00042809,120]
[360319091,1746740968566,-578.0,0.0004281,30]
[360319092,1746740968595,-150.0,0.00042818,120]
[360319093,1746740968623,-500.0,0.00042841,30]
[360319094,1746740968653,-150.0,0.0004286,120]
[360319095,1746740968680,-1019.69522083,0.00042872,30]
[360319096,1746740968708,-1160.19979,0.00042888,30]
[360319097,1746740968736,-150.0,0.00042898,120]
[360319098,1746740968764,-1007.92,0.000429,60]
[360319099,1746740968791,-153.57824153,0.000429,120]
[360319100,1746740968819,-153.57824151,0.000429,120]
[360319101,1746740968847,-153.57824151,0.000429,120]
[360319102,1746740968874,-153.57824151,0.000429,120]
[360319103,1746740968906,-153.57824151,0.000429,120]
[360319104,1746740968934,-153.57824151,0.000429,120]
[360319105,1746740968964,-153.57824151,0.000429,120]
[360319106,1746740968993,-153.57824151,0.000429,120]
[360319107,1746740969021,-150.0,0.00042912,120]
[360319108,1746740969051,-150.0,0.00042921,120]
[360319109,1746740969080,-150.0,0.00042982,120]
[360319110,1746740969108,-305.0,0.00042988,30]
[360319111,1746740969466,-549.99,0.00042998,31]
[360319112,1746740969493,-500.0,0.00042998,30]
[360319113,1746740969523,-1886.43211355,0.00042998,60]
[360319114,1746740969552,-50000.0,0.00043,43]
[360319115,1746740969579,-1800.0,0.00043,44]
[360319116,1746740969606,-1000.0,0.00043,120]
[360319117,1746740969635,-1086.0,0.00043,120]
[360319118,1746740969662,-222.22222,0.00043,120]
[360319119,1746740969689,-20000.0,0.00043,120]
[360319120,1746740969717,-15558.07777828,0.00043,30]
[360319121,1746740969743,-13181.76,0.00043,30]
[360319122,1746740969770,-112112.50541371,0.00043,60]
[360319123,1746740969797,-10000.0,0.00043,30]
[360319124,1746740969824,-500.0,0.00043,120]
[360319125,1746740969853,-20000.0,0.00043,30]
[360319126,1746740969880,-4596.22376086,0.00043,120]
[360319127,1746740969912,-5099.0,0.00043,30]
[360319128,1746740969944,-5000.0,0.00043,30]
[360319129,1746740969974,-40142.0,0.00043,120]
[360319130,1746740970002,-355.0,0.00043,120]
[360319131,1746740970032,-323.0,0.00043,120]
[360319132,1746740970060,-310.50020339,0.00043,30]
[360319133,1746740970087,-2285.79342694,0.00043,30]
[360319134,1746740970113,-3000.0,0.00043,120]
[360319135,1746740970142,-20666.83268762,0.00043,30]
[360319136,1746740970168,-17359.42832301,0.00043,31]
[360319137,1746740970194,-184.06328365,0.00043,120]
[360319138,1746740970220,-581.72107962,0.00043,120]
[360319139,1746740970246,-500.0,0.00043,30]
[360319140,1746740970272,-22142.87964715,0.00043,120]
[360319141,1746740970298,-272.63821943,0.00043,120]
[360319142,1746740970324,-5052.59989028,0.00043,30]
[360319143,1746740970352,-1428511.2149275,0.00043,30]
[360319144,1746740970379,-1518.9746204,0.00043,60]
[360319145,1746740970411,-889.0,0.00043,120]
[360319146,1746740970437,-10000.0,0.00043,120]
[360319147,1746740970466,-10000.0,0.00043,120]
[360319148,1746740970493,-10000.0,0.00043,120]
[360319149,1746740970521,-206.0,0.00043,30]
[360319150,1746740970549,-23124.0,0.00043,120]
[360319151,1746740970575,-98178.09932334,0.00043,30]
[360319152,1746740970602,-610.33,0.00043,120]
[360319153,1746740970628,-37460.99011938,0.00043,30]
[360319154,1746740970656,-41501.30622712,0.00043,120]
[360319155,1746740970682,-155162.87006332,0.00043,120]
[360319156,1746740970708,-784.58,0.00043,120]
[360319157,1746740970735,-811.16,0.00043,120]
[360319158,1746740970762,-13000.0,0.00043,120]
[360319159,1746740970789,-806.17,0.00043,120]
[360319160,1746740970817,-403.15,0.00043,120]
[360319161,1746740970845,-1140.12390923,0.00043013,30]
[360319162,1746740970872,-2000.0,0.00043014,120]
[360319163,1746740970901,-1007.92,0.0004305,61]
[360319164,1746740970928,-1160.19979,0.00043088,30]
[360319165,1746740970958,-1000.0,0.000431,120]
[360319166,1746740970985,-20000.0,0.000431,30]
[360319167,1746740971012,-23663.86229591,0.00043143,30]
[360319168,1746740971039,-1300.0,0.00043155,30]
[360319169,1746740971066,-1000.0,0.000432,120]
[360319170,1746740971093,-20000.0,0.000432,30]
[360319171,1746740971118,-1007.92,0.000432,63]
[360319172,1746740971146,-15000.0,0.000432,30]
[360319173,1746740971172,-442452.37923538,0.0004322,30]
[360319174,1746740972713,-115.21776594,0.00019553,4]
[360319175,1746740972737,-48.38533714,0.00019561,4]
[360319176,1746740975015,-101.61466286,0.00019561,4]
[360319177,1746740975037,-169.2183201,0.00019569,4]
[360319178,1746740975058,-265.60792792,0.00019569,4]
[360319179,1746740975081,-150.0,0.00019573,4]
[360319180,1746740975104,-150.0,0.00019578,4]
[360319181,1746740975124,-169.2183201,0.00019589,4]
[360319182,1746740975148,-265.60792792,0.00019589,4]
[360319183,1746740975169,-150.0,0.00019595,4]
[360319184,1746740975190,-150.0,0.00019603,4]
[360319185,1746740975211,-169.2183201,0.00019609,4]
[360319186,1746740975232,-265.60792792,0.00019609,4]
[360319187,1746740975254,-150.0,0.00019609,4]
[360319188,1746740975274,-150.0,0.00019609,4]
[360319189,1746740975296,-150.0,0.0001962,4]
[360319190,1746740975318,-150.0,0.00019627,4]
[360319191,1746740975338,-169.2183201,0.0001963,4]
[360319192,1746740975360,-265.60792792,0.0001963,4]
[360319193,1746740975382,-150.0,0.00019646,4]
[360319194,1746740975406,-150.0,0.00019649,4]
[360319195,1746740975428,-169.2183201,0.0001965,4]
[360319196,1746740975449,-265.60792792,0.0001965,4]
[360319197,1746740975471,-150.0,0.00019652,4]
[360319198,1746740975495,-169.2183201,0.0001967,4]
[360319199,1746740975516,-265.60792792,0.0001967,4]
[360319200,1746740975539,-150.0,0.00019677,4]
[360319201,1746740975559,-150.0,0.00019679,4]
[360319202,1746740975580,-174.72815102,0.00019681,2]
[360319204,1746740975986,233.33,0.00018776,2]
[360319205,1746740977989,9985.0,0.00030137,120]
[360319206,1746740979672,-238.554,0.00041,30]
[360319207,1746740979720,-153.57824151,0.000429,120]
[360319208,1746740979755,-153.57824151,0.000429,120]
[360319209,1746740979790,-210.54720764,0.00043155,30]
[360319210,1746740979824,-432.20742833,0.00043155,30]
[360319211,1746740979865,-1093.48400321,0.00043155,30]
[360319212,1746740979900,-1769.62076462,0.0004322,30]
[360319213,1746740979935,-150.0,0.00043237,30]
[360319214,1746740979971,-605.87209289,0.00043237,30]
[360319215,1746740980007,-800.0,0.00043244,60]
[360319216,1746740980041,-500.0,0.00043244,60]
[360319217,1746740980073,-500.0,0.00043282,30]
[360319218,1746740980106,-270.26,0.00043287,120]
[360319219,1746740980138,-2000.0,0.00043288,120]
[360319220,1746740980170,-1160.19979,0.00043288,30]
[360319221,1746740980202,-587.23357418,0.00043288,30]
[360319222,1746740980233,-1000.0,0.000433,120]
[360319223,1746740980264,-20000.0,0.000433,30]
[360319224,1746740980295,-150.0,0.00043313,120]
[360319225,1746740980325,-1545.09858507,0.0004332,30]
[360319226,1746740980358,-1007.92,0.0004335,64]
[360319227,1746740980388,-500.0,0.00043352,30]
[360319228,1746740980423,-150.0,0.00043359,120]
[360319229,1746740980454,-1000.0,0.000434,120]
[360319230,1746740980485,-20000.0,0.000434,30]
[360319231,1746740980516,-500.0,0.00043406,30]
[360319232,1746740980546,-148316.83359443,0.0004341,120]
[360319233,1746740980578,-150.0,0.00043421,120]
[360319234,1746740980607,-888.0,0.00043431,30]
[360319235,1746740980638,-2787.9946162,0.0004344,41]
[360319236,1746740980670,-15202.15,0.0004344,120]
[360319237,1746740980700,-300000.0,0.0004344,30]
[360319238,1746740980734,-150.0,0.0004345,120]
[360319239,1746740980767,-292205.95171255,0.00043469,30]
[360319240,1746740980798,-4259.11636828,0.0004347,30]
[360319241,1746740980830,-292205.95171255,0.0004347,30]
[360319242,1746740980861,-12487.92251014,0.00043471,30]
[360319243,1746740980898,-612.40887499,0.00043475,30]
[360319244,1746740980934,-866.274742,0.00043476,30]
[360319245,1746740980970,-215.20054722,0.00043477,30]
[360319246,1746740981001,-838.00136807,0.00043479,30]
[360319247,1746740981035,-1039.0,0.0004348,120]
[360319248,1746740981068,-226.5098967,0.00043481,30]
[360319249,1746740981101,-71442.43873393,0.00043483,30]
[360319250,1746740981133,-71442.43873393,0.00043483,30]
[360319251,1746740981168,-12487.92251014,0.00043484,30]
[360319252,1746740981203,-30422.00514534,0.00043486,30]
[360319253,1746740981235,-1160.19979,0.00043488,30]
[360319254,1746740981267,-17132.49088017,0.00043497,30]
[360319255,1746740981300,-292205.95171255,0.00043497,30]
[360319256,1746740981331,-14055.23716916,0.00043499,30]
[360319257,1746740981362,-1415.91692586,0.000435,120]
[360319258,1746740981398,-34080.0,0.000435,120]
[360319259,1746740981431,-10743.98394304,0.000435,120]
[360319260,1746740981463,-2002.0,0.000435,60]
[360319261,1746740981495,-4148.29061654,0.000435,60]
[360319262,1746740981527,-1000.0,0.000435,120]
[360319263,1746740981560,-269.25,0.000435,120]
[360319264,1746740981593,-2674.5462929,0.000435,120]
[360319265,1746740981626,-20000.0,0.000435,30]
[360319266,1746740981661,-57645.20133518,0.000435,120]
[360319267,1746740983076,-1261.039559,0.000435,65]
[360319268,1746740983125,-30422.00514534,0.00043508,30]
[360319269,1746740983156,-838.00136807,0.00043511,30]
[360319270,1746740983186,-71442.43873393,0.00043513,30]
[360319271,1746740983216,-30422.00514534,0.00043513,30]
[360319272,1746740983246,-150.0,0.00043516,120]
[360319273,1746740983274,-2110.0,0.00043516,30]
[360319274,1746740983302,-17132.49088017,0.00043524,30]
[360319275,1746740983331,-150.0,0.00043524,120]
[360319276,1746740983360,-14055.23716916,0.00043525,30]
[360319277,1746740983389,-17132.49088017,0.00043527,30]
[360319278,1746740983417,-268.61,0.00043535,30]
[360319279,1746740983446,-12487.92251014,0.00043541,30]
[360319280,1746740983474,-14055.23716916,0.00043543,30]
[360319281,1746740983500,-866.274742,0.00043544,30]
[360319282,1746740983528,-1075.0,0.0004355,120]
[360319283,1746740983555,-200.0,0.00043561,60]
[360319284,1746740983584,-2000.0,0.00043562,120]
[360319285,1746740983611,-999.57239449,0.0004357,30]
[360319286,1746740983653,-150.0,0.00043594,120]
[360319287,1746740983684,-500.0,0.00043596,30]
[360319288,1746740983713,-1000.0,0.000436,120]
[360319289,1746740983742,-20000.0,0.000436,30]
[360319290,1746740983772,-304.93797,0.000436,120]
[360319291,1746740983800,-788.84,0.000436,120]
[360319292,1746740983830,-258.0,0.000436,120]
[360319293,1746740983859,-268.1,0.000436,120]
[360319294,1746740983888,-4256.98,0.000436,120]
[360319295,1746740983922,-357.45,0.000436,120]
[360319296,1746740983953,-549.85,0.000436,120]
[360319297,1746740983985,-3472.08,0.000436,120]
[360319298,1746740984015,-273.41,0.000436,120]
[360319299,1746740984046,-558.81,0.000436,120]
[360319300,1746740984076,-997.16,0.000436,120]
[360319301,1746740984108,-2000.0,0.00043636,120]
[360319302,1746740984137,-242.567452,0.00043636,120]
[360319303,1746740984173,-2506.99573191,0.00043647,30]
[360319304,1746740984208,-1160.19979,0.00043688,30]
[360319305,1746740984239,-1271.41146712,0.000437,120]
[360319306,1746740984271,-1000.0,0.000437,120]
[360319307,1746740984300,-18900.0,0.000437,30]
[360319308,1746740984330,-3560.66944457,0.000437,120]
[360319309,1746740984360,-150.0,0.000437,69]
[360319310,1746740984392,-1673.7152873,0.000437,30]